bitfinex/quotes_ETHUSD_20260312
["timestamp","ask_amount","ask_price","bid_price","bid_amount"]
[1773279338957,4.88596363,2047.1,2046.5,0.37287256]
[1773279338958,0.47036285,2047.1,2046.6,0.37287256]
[1773279340818,1.69066231,2047.0,2046.5,1.59473764]
[1773279341593,0.47716493,2047.2,2046.6,0.37314256]
[1773279342014,0.47616493,2047.2,2046.6,0.37414256]
[1773279343034,0.001,2047.0,2046.6,1.59562147]
[1773279343234,0.001,2047.0,2046.7,0.37414256]
[1773279343744,0.47816493,2047.0,2046.7,0.37414256]
[1773279344865,0.001,2047.0,2046.7,0.37414256]
[1773279345154,0.001,2047.0,2046.7,1.59559054]
[1773279346659,0.47816493,2047.0,2046.7,0.37414256]
[1773279347059,0.47716493,2047.3,2046.8,0.37314256]
[1773279348069,0.47716493,2047.3,2046.8,1.22137989]
[1773279348268,0.47716493,2047.2,2046.9,0.37314256]
[1773279349261,1.69828365,2047.4,2046.9,0.37314256]
[1773279349463,0.47716493,2047.4,2046.9,0.37314256]
[1773279350364,1.69823548,2047.4,2047.0,0.37314256]
[1773279351952,0.47716493,2047.4,2047.0,0.37314256]
[1773279352347,1.6982349,2047.4,2047.0,0.37314256]
[1773279352547,0.46578695,2047.3,2047.0,0.37314256]
[1773279352767,0.46578695,2047.3,2046.8,1.22137284]
[1773279352768,0.46578695,2047.3,2046.9,0.37314256]
[1773279354767,0.46578695,2047.3,2046.9,1.59449937]
[1773279355170,0.46578695,2047.3,2047.1,0.0011]
[1773279357969,0.46578695,2047.2,2047.1,0.0011]
[1773279358648,0.46578695,2047.2,2046.9,0.0011]
[1773279359365,0.46578695,2047.1,2046.9,0.0011]
[1773279362178,1.68693757,2047.3,2046.9,0.37534256]
[1773279362373,0.46578695,2047.3,2046.9,0.37534256]
[1773279362763,1.68683505,2047.5,2046.9,0.37534256]
[1773279363061,0.46578695,2047.4,2046.9,0.37534256]
[1773279363644,0.46578695,2047.6,2047.1,0.37424256]
[1773279365880,0.46578695,2047.6,2047.1,1.22120608]
[1773279366084,1.68673036,2047.6,2047.2,0.38254497]
[1773279366375,0.46578695,2047.6,2047.2,0.38254497]
[1773279367984,0.46578695,2047.6,2047.3,0.0011]
[1773279368286,0.79859343,2047.8,2047.4,0.38154497]
[1773279368492,0.46578695,2047.7,2047.4,0.38154497]
[1773279369885,2.01942495,2047.8,2047.4,0.38154497]
[1773279371614,2.01942612,2047.8,2047.4,0.38154497]
[1773279372280,0.46578695,2047.7,2047.3,0.0011]
[1773279372661,0.46578695,2047.7,2047.3,0.38264497]
[1773279374786,0.46578695,2047.6,2047.3,0.0011]
[1773279375893,0.46578695,2047.6,2047.3,0.36760888]
[1773279376092,1.22088926,2047.7,2047.3,0.36760888]
[1773279376390,0.79859343,2047.8,2047.4,0.36650888]
[1773279376599,2.0194549,2047.8,2047.4,0.36650888]
[1773279377383,0.79859343,2047.8,2047.4,1.22102582]
[1773279377586,0.33280648,2047.8,2047.5,0.36650888]
[1773279378393,0.46578695,2047.7,2047.3,0.0011]
[1773279378973,1.68667222,2047.7,2047.3,0.36760888]
[1773279379173,0.46578695,2047.6,2047.3,0.0011]
[1773279379673,0.46578695,2047.6,2047.3,0.36760888]
[1773279380293,0.46578695,2047.6,2047.3,0.0011]
[1773279380870,0.001,2047.4,2047.3,0.0011]
[1773279381190,0.001,2047.4,2047.3,0.36760888]
[1773279384408,0.49653166,2047.7,2047.3,1.22220311]
[1773279384578,0.33280648,2047.8,2047.4,0.36550888]
[1773279385202,0.82933814,2047.8,2047.4,0.36550888]
[1773279386292,0.82933814,2047.8,2047.5,0.36550888]
[1773279386977,0.33280648,2047.8,2047.5,0.36550888]
[1773279389985,0.33280648,2047.8,2047.6,0.36550888]
[1773279391681,0.33280648,2047.8,2047.5,0.36550888]
[1773279391881,0.33280648,2047.8,2047.5,1.58648559]
[1773279393115,0.82933814,2047.8,2047.5,1.58758559]
[1773279393320,0.001,2047.6,2047.5,1.58758559]
[1773279395286,0.001,2047.6,2047.5,0.36660888]
[1773279397020,0.49753166,2047.6,2047.3,0.0011]
[1773279398721,0.49753166,2047.6,2047.3,0.36770888]
[1773279400793,0.49753166,2047.6,2047.3,0.0011]
[1773279401305,0.49753166,2047.6,2047.3,0.36770888]
[1773279401929,0.001,2047.6,2047.3,1.58882528]
[1773279402104,0.001,2047.6,2047.4,0.36660888]
[1773279402922,0.48664701,2047.5,2047.3,0.0011]
[1773279405504,0.001,2047.4,2047.3,0.0011]
[1773279408232,0.48764701,2047.4,2047.0,0.0011]
[1773279408517,0.48664701,2047.3,2047.0,0.0011]
[1773279409807,0.001,2047.4,2047.0,1.57506992]
[1773279410012,0.4945929,2047.4,2047.0,1.57506992]
[1773279410706,0.4945929,2047.4,2047.0,0.35377279]
[1773279411825,0.001,2047.4,2047.0,0.35377279]
[1773279411994,0.4945929,2047.4,2047.0,0.35377279]
[1773279412327,0.4945929,2047.4,2046.8,0.0011]
[1773279412328,0.4935929,2047.3,2046.8,0.0011]
[1773279412553,0.4935929,2047.3,2046.2,1.58264586]
[1773279412554,0.4935929,2046.9,2046.2,1.58264586]
[1773279412710,0.4935929,2046.6,2046.2,2.80439377]
[1773279412913,0.4935929,2046.6,2046.3,1.22281605]
[1773279413331,0.4935929,2046.6,2046.3,0.0011]
[1773279415629,0.4878629,2046.6,2046.3,0.0011]
[1773279418641,0.4878629,2046.6,2046.5,0.0011]
[1773279420451,1.22143713,2046.8,2046.5,0.0011]
[1773279420452,0.4935929,2047.0,2046.5,0.35950279]
[1773279421212,0.001,2047.1,2046.7,0.35840279]
[1773279421734,0.4945929,2047.1,2046.7,1.57982199]
[1773279422643,0.001,2047.1,2046.8,0.35840279]
[1773279423651,0.001,2047.1,2046.8,1.57976563]
[1773279424923,0.001,2047.1,2046.9,0.35840279]
[1773279426753,0.001,2047.4,2047.0,1.57970225]
[1773279426924,0.4945929,2047.4,2047.0,1.57970225]
[1773279429661,0.001,2047.4,2047.1,0.35840279]
[1773279431048,0.001,2047.2,2047.1,0.35840279]
[1773279431464,0.001,2047.6,2047.2,0.35840279]
[1773279431713,0.001,2047.6,2047.4,0.35840279]
[1773279433344,0.33280648,2047.8,2047.5,0.35840279]
[1773279433761,0.33280648,2047.8,2047.6,1.57934438]
[1773279434737,0.82639938,2047.8,2047.5,1.22095636]
[1773279435071,0.4935929,2047.7,2047.4,1.22101708]
[1773279435642,0.4935929,2047.7,2047.3,2.8701205]
[1773279435846,0.4935929,2047.6,2047.0,3.22870141]
[1773279436377,0.4935929,2047.6,2047.1,0.35840279]
[1773279438379,0.4935929,2047.6,2047.2,1.22118014]
[1773279438883,0.4935929,2047.6,2047.2,1.57958293]
[1773279440183,0.4935929,2047.6,2047.2,1.22118014]
[1773279440400,0.4935929,2047.6,2047.1,0.35840279]
[1773279440545,0.46027358,2047.5,2047.0,1.22129402]
[1773279440745,0.46027358,2047.5,2047.0,1.57969681]
[1773279443083,0.46027358,2047.5,2047.4,0.0011]
[1773279446885,0.46027358,2047.5,2047.2,0.0011]
[1773279447078,0.46027358,2047.4,2047.2,0.0011]
[1773279448365,0.46027358,2047.6,2047.2,0.0011]
[1773279452585,0.46027358,2047.6,2047.2,0.35950279]
[1773279456390,0.46027358,2047.6,2047.4,0.0011]
[1773279462210,0.46855901,2047.6,2047.4,0.0011]
[1773279467210,0.46855901,2047.5,2046.9,0.0011]
[1773279467514,0.46855901,2047.2,2046.9,0.0011]
[1773279469413,0.46855901,2047.0,2046.9,0.0011]
[1773279471802,1.72097828,2047.3,2046.9,0.35950279]
[1773279472107,0.49984726,2047.2,2046.9,0.35950279]
[1773279473997,1.72193548,2047.4,2046.9,0.35950279]
[1773279474198,0.49984726,2047.3,2046.9,0.35950279]
[1773279474818,0.49984726,2047.3,2047.0,0.35840279]
[1773279476316,1.7209896,2047.3,2046.9,0.35950279]
[1773279476523,0.49984726,2047.2,2046.9,0.35950279]
[1773279478618,1.22114234,2047.3,2047.0,0.35840279]
[1773279478803,1.7219496,2047.4,2047.0,0.35840279]
[1773279481923,1.7219496,2047.4,2047.1,0.0011]
[1773279482119,1.22210234,2047.4,2047.1,0.0011]
[1773279482422,0.50084726,2047.2,2047.1,0.0011]
[1773279483293,0.50084726,2047.2,2046.9,0.0011]
[1773279485824,0.49984726,2047.1,2046.9,0.0011]
[1773279486327,1.72112498,2047.1,2046.9,0.0011]
[1773279487426,0.49984726,2047.1,2046.9,0.0011]
[1773279488111,0.50084726,2047.2,2046.9,0.0011]
[1773279491530,1.72208095,2047.2,2046.9,0.0011]
[1773279491845,1.72208095,2047.2,2046.9,0.369905]
[1773279492350,0.49984726,2047.1,2046.9,0.0011]
[1773279494630,0.001,2047.0,2046.9,0.0011]
[1773279494830,0.001,2047.2,2047.0,0.367805]
[1773279498435,0.49984726,2047.1,2046.9,0.0011]
[1773279498626,0.001,2047.2,2046.9,0.368905]
[1773279499847,0.001,2047.2,2046.9,1.59020572]
[1773279500018,0.001,2047.2,2046.9,0.368905]
[1773279500344,0.45698328,2047.2,2046.9,1.59025908]
[1773279500751,0.45698328,2047.2,2046.9,0.368905]
[1773279501931,0.45598328,2047.1,2046.9,0.0011]
[1773279502743,0.45598328,2047.1,2046.8,0.0011]
[1773279504661,0.45598328,2047.0,2046.8,0.0011]
[1773279506555,0.45698328,2047.0,2046.8,0.0011]
[1773279508029,0.45598328,2046.9,2046.8,0.0011]
[1773279508241,0.45598328,2046.9,2046.5,0.0011]
[1773279508447,0.45598328,2046.9,2046.5,1.22269123]
[1773279509259,0.45598328,2046.9,2046.5,1.59159623]
[1773279509424,0.45698328,2047.0,2046.6,0.368905]
[1773279509751,0.45698328,2047.0,2046.5,0.0011]
[1773279509752,0.45598328,2046.9,2046.5,0.0011]
[1773279510326,1.67736044,2046.9,2046.5,0.370005]
[1773279511255,0.45598328,2046.8,2046.5,0.0011]
[1773279513146,0.45598328,2046.8,2046.5,0.370005]
[1773279514351,0.45598328,2046.7,2046.5,0.0011]
[1773279514656,0.45598328,2046.6,2046.5,0.0011]
[1773279515148,0.45598328,2046.6,2046.3,0.0011]
[1773279515946,1.22146873,2046.8,2046.0,0.0011]
[1773279515947,0.45598328,2046.4,2046.0,0.0011]
[1773279516145,0.45598328,2046.3,2046.0,0.0011]
[1773279516346,0.45598328,2046.1,2046.0,0.0011]
[1773279516769,0.45598328,2046.2,2046.0,0.0011]
[1773279518360,0.45598328,2046.2,2045.9,0.3175916]
[1773279518361,0.45598328,2046.0,2045.9,0.3175916]
[1773279525163,1.69270845,2046.6,2046.0,0.370005]
[1773279525370,0.47014375,2046.5,2046.0,0.370005]
[1773279526088,0.47014375,2046.5,2046.1,0.370005]
[1773279526388,0.001,2046.6,2046.1,0.370005]
[1773279526587,0.47114375,2046.6,2046.1,0.370005]
[1773279527170,0.47114375,2046.6,2046.2,1.22177695]
[1773279527376,0.47114375,2046.6,2046.2,1.59178195]
[1773279527787,0.47114375,2046.6,2046.2,0.370005]
[1773279529493,0.47114375,2046.6,2046.2,1.59177074]
[1773279531314,1.22159784,2046.5,2045.9,0.3175916]
[1773279531465,0.47212998,2046.3,2046.0,0.370005]
[1773279531976,0.47212998,2046.3,2046.2,0.0011]
[1773279532915,1.6937729,2046.5,2046.2,0.0011]
[1773279533071,0.47212998,2046.4,2046.2,0.0011]
[1773279533704,0.47312998,2046.6,2046.2,0.371105]
[1773279534199,0.47312998,2046.6,2046.3,0.66304781]
[1773279534405,0.47312998,2046.6,2046.2,0.371105]
[1773279534606,0.001,2046.6,2046.2,0.371105]
[1773279534778,0.001,2046.6,2046.4,0.370005]
[1773279534973,0.47212998,2046.9,2046.6,0.370005]
[1773279536474,0.001,2047.0,2046.6,1.59153545]
[1773279536674,0.001,2047.0,2046.7,0.370005]
[1773279536874,0.001,2047.0,2046.8,0.370005]
[1773279539199,0.001,2047.0,2046.3,0.370005]
[1773279539200,0.47312998,2047.0,2046.3,0.370005]
[1773279539403,0.47312998,2047.0,2046.2,0.0011]
[1773279539404,0.47212998,2046.8,2046.2,0.0011]
[1773279539572,0.47212998,2046.8,2046.2,1.59287709]
[1773279539888,0.47212998,2046.7,2046.2,1.59287709]
[1773279540086,0.47212998,2046.9,2046.5,1.03305281]
[1773279540285,0.001,2047.0,2046.6,0.370005]
[1773279540705,1.22229979,2047.0,2046.6,0.370005]
[1773279540878,0.001,2047.0,2046.6,0.370005]
[1773279541079,0.001,2047.2,2046.8,0.370005]
[1773279541278,1.22218372,2047.2,2046.8,0.370005]
[1773279541495,0.47212998,2047.1,2046.6,0.370005]
[1773279543916,1.22218372,2047.2,2046.8,0.370005]
[1773279543917,0.001,2047.2,2046.8,0.370005]
[1773279544926,0.47312998,2047.2,2046.8,0.370005]
[1773279546123,1.2212398,2047.1,2046.7,0.370005]
[1773279546700,1.69435671,2047.2,2046.7,0.370005]
[1773279548040,0.47312998,2047.2,2046.8,1.2214188]
[1773279548541,1.69432892,2047.2,2046.7,1.59144099]
[1773279548828,0.47212998,2047.1,2046.7,1.59144099]
[1773279550503,1.69338785,2047.1,2046.7,0.370005]
[1773279550734,0.47212998,2047.1,2046.7,1.59148179]
[1773279556326,0.001,2047.2,2046.9,0.370005]
[1773279556697,1.69431147,2047.2,2046.9,0.370005]
[1773279557519,0.47312998,2047.2,2046.9,0.370005]
[1773279558629,0.47312998,2047.2,2046.9,0.371105]
[1773279558799,0.001,2047.0,2046.9,0.371105]
[1773279561300,0.001,2047.0,2046.9,1.59246412]
[1773279561732,0.001,2047.0,2046.9,0.371105]
[1773279562030,0.001,2047.0,2046.9,0.0011]
[1773279565931,0.47999942,2047.4,2047.0,0.370005]
[1773279566117,0.47899942,2047.5,2047.2,0.370005]
[1773279566637,5.21614748,2047.8,2047.3,0.370005]
[1773279566638,1.69991344,2047.7,2047.3,0.370005]
[1773279566837,0.47899942,2047.6,2047.2,0.370005]
[1773279569753,5.21614748,2047.8,2047.2,0.370005]
[1773279569754,2.03266458,2047.8,2047.4,0.370005]
[1773279570157,0.47899942,2047.7,2047.4,0.370005]
[1773279572857,0.001,2047.5,2047.4,0.370005]
[1773279574264,0.001,2047.5,2047.2,3.24216161]
[1773279574762,0.47999942,2047.5,2047.2,3.24216161]
[1773279575645,0.47999942,2047.5,2047.2,1.59116161]
[1773279575833,0.47999942,2047.5,2047.2,3.24416161]
[1773279576290,2.03263367,2047.8,2047.4,1.0329893]
[1773279576442,0.47899942,2047.7,2047.2,3.24416161]
[1773279576632,0.47899942,2047.7,2047.3,0.370005]
[1773279577559,0.47899942,2047.5,2047.2,2.87417955]
[1773279577728,0.47899942,2047.5,2047.1,1.59233779]
[1773279577933,0.47899942,2047.5,2047.1,3.24533779]
[1773279578533,0.33280648,2047.8,2047.1,3.24533779]
[1773279578534,0.8118059,2047.8,2047.4,0.370005]
[1773279578758,0.8118059,2047.8,2047.5,1.0329893]
[1773279578933,0.8118059,2047.8,2047.5,0.370005]
[1773279579452,0.47899942,2047.9,2047.6,0.370005]
[1773279579647,0.47899942,2048.0,2047.6,1.5909155]
[1773279579867,0.47899942,2048.0,2047.7,1.0329893]
[1773279580164,0.47899942,2048.0,2047.7,0.370005]
[1773279580660,0.47899942,2048.1,2047.7,0.370005]
[1773279582260,0.47899942,2048.1,2047.7,1.59086986]
[1773279585839,0.001,2047.9,2047.7,1.59086986]
[1773279591645,0.47755939,2048.2,2047.7,1.59086986]
[1773279591845,0.47755939,2048.2,2047.8,1.59079235]
[1773279592171,1.69815281,2048.2,2047.8,0.370005]
[1773279592474,0.47755939,2048.1,2047.8,0.370005]
[1773279593057,0.47755939,2048.1,2047.8,1.59081984]
[1773279593259,0.47755939,2048.1,2047.8,0.370005]
[1773279593758,1.69811639,2048.3,2047.9,0.370005]
[1773279593957,0.47755939,2048.2,2047.9,0.370005]
[1773279594166,0.47755939,2048.2,2047.8,0.370005]
[1773279595055,0.47755939,2048.2,2047.7,0.370005]
[1773279595266,0.47755939,2048.2,2047.4,1.59213103]
[1773279596176,0.47755939,2048.0,2047.5,0.370005]
[1773279598378,0.47755939,2047.9,2047.7,0.0011]
[1773279598771,0.001,2047.8,2047.7,0.0011]
[1773279600552,0.47755939,2048.1,2047.7,0.371105]
[1773279600768,0.47855939,2048.7,2048.1,0.370005]
[1773279600974,0.47855939,2048.7,2048.3,1.0329893]
[1773279600975,1.69887491,2048.7,2048.3,1.0329893]
[1773279601297,0.47755939,2048.6,2048.1,0.370005]
[1773279602399,5.28193183,2048.8,2048.5,0.370005]
[1773279602400,0.40101459,2048.8,2048.5,0.370005]
[1773279603700,1.22001241,2049.2,2048.7,0.370005]
[1773279603899,1.69752655,2049.3,2048.8,1.0329893]
[1773279604578,1.69749391,2049.3,2048.8,1.0329893]
[1773279604878,4.87877623,2049.7,2049.0,1.0329893]
[1773279604879,0.47755939,2049.7,2049.0,1.0329893]
[1773279605402,0.47755939,2049.7,2049.3,0.370005]
[1773279606290,0.47755939,2049.8,2049.4,0.370005]
[1773279606966,0.38898557,2049.9,2049.5,0.370005]
[1773279607267,0.38898557,2049.9,2049.3,1.661]
[1773279607268,0.47755939,2049.8,2049.3,1.661]
[1773279607607,0.47755939,2049.8,2049.3,0.370005]
[1773279608382,0.47755939,2049.7,2048.9,0.370005]
[1773279608889,0.47755939,2049.7,2048.8,2.32229227]
[1773279609494,0.47755939,2049.5,2048.8,3.54251823]
[1773279609697,0.47755939,2049.5,2048.8,2.32229227]
[1773279609993,0.47755939,2049.5,2048.8,2.69229727]
[1773279610179,0.47755939,2049.5,2048.8,1.03129727]
[1773279610777,0.47755939,2049.5,2048.9,0.370005]
[1773279611214,0.47755939,2049.5,2049.0,0.0011]
[1773279611416,0.47755939,2049.3,2049.0,0.0011]
[1773279613524,0.47755939,2049.1,2049.0,0.0011]
[1773279615716,1.69760721,2049.1,2049.0,0.0011]
[1773279616812,1.22001324,2049.2,2049.0,0.0011]
[1773279617007,1.69757263,2049.2,2049.0,0.0011]
[1773279617737,0.47755939,2049.1,2048.8,0.0011]
[1773279618022,0.47755939,2049.1,2048.5,0.0011]
[1773279618023,0.47755939,2049.0,2048.5,0.0011]
[1773279618789,1.69757263,2049.2,2048.5,1.88278892]
[1773279618991,1.69757263,2049.2,2048.6,0.371105]
[1773279619191,0.47755939,2049.1,2048.6,0.371105]
[1773279619920,1.69763191,2049.1,2048.6,1.22032471]
[1773279620235,1.22003302,2049.2,2048.8,0.371105]
[1773279620530,4.87929005,2049.5,2049.0,0.371105]
[1773279620531,0.49184116,2049.5,2049.0,0.371105]
[1773279620730,1.22079132,2049.6,2049.0,0.371105]
[1773279620731,1.22077557,2049.6,2049.0,0.371105]
[1773279620896,1.71261673,2049.6,2049.0,0.371105]
[1773279622413,1.71261673,2049.6,2049.1,0.371105]
[1773279622707,0.49284116,2049.6,2049.1,0.371105]
[1773279623017,0.001,2049.6,2049.2,0.371105]
[1773279624093,0.49184116,2049.5,2049.0,0.371105]
[1773279624523,1.21986923,2049.4,2049.0,0.371105]
[1773279625225,1.71169422,2049.5,2049.0,1.5912109]
[1773279625526,0.001,2049.6,2049.2,0.371105]
[1773279626423,0.001,2049.6,2049.4,0.66129227]
[1773279626623,0.001,2049.6,2049.4,2.25225328]
[1773279626793,0.001,2049.6,2049.4,1.59096101]
[1773279626990,0.001,2049.6,2049.4,2.25225328]
[1773279627390,0.49184116,2050.1,2049.5,0.371105]
[1773279627608,1.71131042,2050.1,2049.5,0.371105]
[1773279627927,0.49184116,2050.0,2049.5,0.371105]
[1773279629726,1.71137057,2050.0,2049.5,1.59088731]
[1773279630901,0.49184116,2049.9,2049.3,1.21990994]
[1773279631965,1.71137722,2050.0,2049.4,0.37321868]
[1773279632815,0.49184116,2050.0,2049.4,0.37321868]
[1773279633012,1.71135385,2050.0,2049.4,0.37321868]
[1773279633837,0.49184116,2049.9,2049.4,0.37321868]
[1773279635039,1.71142597,2049.9,2049.4,1.59305423]
[1773279635336,0.49184116,2049.8,2049.2,1.59316697]
[1773279635536,0.49184116,2049.8,2049.1,3.25626255]
[1773279636033,0.49184116,2049.8,2049.2,0.37321868]
[1773279636841,1.72903662,2050.2,2049.2,0.37321868]
[1773279637022,0.49184116,2050.0,2049.2,0.37321868]
[1773279637640,1.71137664,2050.0,2049.4,0.37321868]
[1773279638657,0.49184116,2049.9,2049.4,0.37321868]
[1773279638953,0.49184116,2049.9,2049.4,2.03721868]
[1773279639560,1.71146783,2049.9,2049.4,2.03721868]
[1773279640039,1.71146783,2049.9,2049.4,3.2570712]
[1773279640657,0.49184116,2049.9,2049.4,3.2570712]
[1773279640958,1.71142334,2049.9,2049.6,0.0011]
[1773279641257,0.001,2049.8,2049.6,0.0011]
[1773279642238,0.49610819,2049.8,2049.6,0.0011]
[1773279644259,1.71574446,2049.8,2049.6,0.0011]
[1773279647471,0.49510819,2049.7,2049.6,0.0011]
[1773279648171,0.49510819,2049.7,2049.4,0.0011]
[1773279649567,0.49510819,2049.5,2049.4,0.0011]
[1773279650257,1.69114132,2049.7,2049.4,0.0011]
[1773279650634,0.47141059,2049.6,2049.4,0.0011]
[1773279650834,0.001,2049.8,2049.5,0.36065249]
[1773279651040,1.69184329,2050.2,2049.8,0.36065249]
[1773279651266,0.47241059,2050.2,2049.8,0.36065249]
[1773279651971,1.69180433,2050.2,2049.8,0.36065249]
[1773279652666,0.47241059,2050.2,2049.8,1.58027158]
[1773279653675,1.69180807,2050.2,2049.8,1.58027158]
[1773279653837,1.69180807,2050.2,2049.8,0.36065249]
[1773279654038,1.69180807,2050.2,2049.7,1.88097293]
[1773279654039,1.69180807,2050.2,2049.7,0.36065249]
[1773279654574,0.47141059,2050.1,2049.7,1.58033463]
[1773279655372,1.22039748,2050.2,2049.8,0.36065249]
[1773279655373,0.47241059,2050.2,2049.8,0.36065249]
[1773279655975,0.001,2050.0,2049.8,1.58024995]
[1773279656737,0.001,2050.0,2049.8,1.21959746]
[1773279657004,1.69072889,2050.4,2049.9,1.02197576]
[1773279657176,1.69068651,2050.4,2049.9,1.02197576]
[1773279657666,1.21927592,2050.4,2049.9,1.02197576]
[1773279657968,1.69076111,2050.3,2049.9,0.36065249]
[1773279658263,0.47141059,2050.2,2049.9,0.36065249]
[1773279658767,0.47141059,2050.2,2049.8,1.21959746]
[1773279659378,0.47141059,2050.2,2049.7,2.24165159]
[1773279659541,0.47141059,2050.2,2049.7,3.24432832]
[1773279659863,1.69081086,2050.2,2049.7,3.24432832]
[1773279661381,1.21937385,2050.3,2049.9,0.36065249]
[1773279661553,5.34851761,2050.4,2050.2,0.66132327]
[1773279661554,0.47141059,2050.4,2050.2,0.66132327]
[1773279661881,1.69044747,2050.8,2050.3,1.57998624]
[1773279662179,1.69044747,2050.8,2050.3,0.36065249]
[1773279662373,0.47141059,2050.7,2050.3,0.36065249]
[1773279662577,0.47141059,2050.7,2050.2,1.88067481]
[1773279663167,0.47141059,2050.7,2050.1,3.2450606]
[1773279663483,0.47141059,2050.7,2050.1,2.88440811]
[1773279663967,0.47141059,2050.6,2050.1,1.21940811]
[1773279664148,0.47141059,2050.6,2050.1,2.88440811]
[1773279665560,0.47141059,2050.6,2050.1,3.54514728]
[1773279666982,0.47141059,2050.5,2050.0,0.36065249]
[1773279667181,0.47141059,2050.5,2050.0,2.02665249]
[1773279667885,0.47141059,2050.5,2049.9,3.54630895]
[1773279668583,0.47141059,2050.5,2050.2,0.0011]
[1773279668783,0.47141059,2050.3,2049.6,1.22080488]
[1773279668999,0.47141059,2050.1,2049.6,1.6671]
[1773279669147,0.47141059,2050.1,2050.0,0.0011]
[1773279670677,1.21937044,2050.3,2050.0,0.0011]
[1773279671388,1.69078103,2050.3,2050.0,0.0011]
[1773279675464,1.21939322,2050.2,2050.0,0.0011]
[1773279676485,5.34888878,2050.3,2050.0,0.0011]
[1773279676486,1.69078081,2050.3,2050.0,0.0011]
[1773279677186,1.69078624,2050.3,2050.0,0.0011]
[1773279679090,1.69077241,2050.3,2050.0,0.0011]
[1773279679679,0.47141059,2050.2,2050.0,0.0011]
[1773279679871,0.47141059,2050.2,2049.7,0.0011]
[1773279680474,0.47141059,2050.2,2049.7,0.36395249]
[1773279682011,1.67435548,2050.1,2049.7,0.36395249]
[1773279682494,1.67435548,2050.1,2050.0,0.0011]
[1773279684198,1.67435548,2050.1,2049.4,0.0011]
[1773279684199,0.45390278,2049.8,2049.4,0.0011]
[1773279684390,0.45390278,2049.8,2049.4,0.0022]
[1773279686193,0.45390278,2049.6,2049.4,0.0022]
[1773279687484,0.45390278,2049.6,2049.4,0.0011]
[1773279689272,0.45390278,2049.5,2049.4,0.0022]
[1773279690809,0.66073917,2049.9,2049.4,0.35138631]
[1773279691007,0.45390278,2049.9,2049.5,0.0011]
[1773279691579,1.67353396,2049.8,2049.5,0.0011]
[1773279692409,0.45390278,2049.7,2049.5,0.0011]
[1773279695509,0.45390278,2049.7,2049.6,0.0011]
[1773279695894,1.67359346,2049.7,2049.6,0.0011]
[1773279697112,0.45390278,2049.7,2049.6,0.0011]
[1773279700985,1.67359346,2049.7,2049.6,0.0011]
[1773279701820,0.45390278,2049.7,2049.6,0.0011]
[1773279702114,1.67359346,2049.7,2049.6,0.0011]
[1773279702816,1.70470074,2049.8,2049.6,0.0011]
[1773279703514,0.4850285,2049.7,2049.6,0.0011]
[1773279704981,0.4850285,2049.7,2049.5,0.0011]
[1773279705196,0.4850285,2049.7,2049.3,1.21992093]
[1773279706017,1.71967223,2049.8,2049.4,0.0011]
[1773279707091,0.49999999,2049.7,2049.4,0.0011]
[1773279707302,0.49999999,2049.7,2049.6,0.0011]
[1773279711322,1.2196819,2049.8,2049.6,0.0011]
[1773279711517,0.49999999,2049.8,2049.6,0.0022]
[1773279711820,0.50099999,2050.1,2049.7,0.0011]
[1773279712037,0.001,2050.1,2049.7,0.0011]
[1773279712217,0.50099999,2050.1,2049.6,0.0011]
[1773279712522,0.50099999,2050.1,2049.7,0.0011]
[1773279712724,1.72045493,2050.1,2049.7,0.0011]
[1773279715631,0.50099999,2050.1,2049.7,0.0011]
[1773279716853,0.001,2050.1,2049.7,0.66183917]
[1773279717071,0.001,2050.1,2049.7,0.0011]
[1773279717548,0.001,2050.1,2049.8,0.0011]
[1773279717749,0.001,2050.1,2049.7,0.0011]
[1773279719821,0.001,2049.9,2049.7,0.0011]
[1773279722644,0.50099999,2049.9,2049.7,0.0011]
[1773279722954,0.49989999,2049.9,2049.6,2.86985019]
[1773279723626,0.49989999,2049.9,2049.6,1.22085019]
[1773279723831,0.49989999,2049.9,2049.6,1.22082698]
[1773279724537,0.50094999,2050.1,2049.6,1.22082698]
[1773279724740,0.001,2050.1,2049.6,1.88156615]
[1773279725058,0.001,2050.1,2049.8,0.66073917]
[1773279726461,0.49994999,2050.6,2050.0,0.66073917]
[1773279726755,0.49994999,2050.6,2050.1,1.2194527]
[1773279727061,0.49994999,2050.6,2050.2,0.66073917]
[1773279727630,0.49994999,2050.6,2050.1,3.5291917]
[1773279729661,0.49994999,2050.8,2050.1,3.5291917]
[1773279729867,0.49994999,2050.8,2050.3,0.660739]
[1773279730442,0.49994999,2050.9,2050.4,0.01376618]
[1773279730745,0.4931169,2051.0,2050.6,0.01376618]
[1773279730945,0.4931169,2051.0,2050.6,1.21910331]
[1773279731147,0.4931169,2051.0,2050.7,0.01376618]
[1773279731756,0.4931169,2051.0,2050.6,1.21910331]
[1773279731954,0.4931169,2051.0,2050.6,1.23286949]
[1773279732565,0.4931169,2051.2,2050.7,0.01376618]
[1773279732743,0.4931169,2051.2,2050.8,0.01376618]
[1773279733068,0.4931169,2051.2,2050.9,1.89348221]
[1773279733543,0.4931169,2051.4,2051.0,0.01376618]
[1773279734049,4.87429614,2051.6,2051.0,0.01376618]
[1773279734050,0.45533091,2051.6,2051.2,0.47874885]
[1773279734352,1.67390007,2051.6,2051.2,0.47874885]
[1773279735463,1.67367982,2052.0,2051.5,0.47874885]
[1773279735777,1.67367982,2052.0,2051.3,0.47874885]
[1773279735778,0.45533091,2051.9,2051.3,0.47874885]
[1773279736340,0.45533091,2051.9,2051.3,2.12974885]
[1773279736539,0.45533091,2051.9,2051.3,0.47874885]
[1773279736739,0.45533091,2051.9,2051.3,2.12974885]
[1773279737046,1.21844234,2051.8,2051.3,0.47874885]
[1773279737246,0.45533091,2051.7,2051.3,0.47874885]
[1773279737564,0.45533091,2051.7,2051.3,1.69747415]
[1773279737771,1.67376006,2051.9,2051.4,1.13948785]
[1773279737985,0.45533091,2051.9,2051.5,0.47874885]
[1773279738273,1.67363947,2052.1,2051.6,1.13948785]
[1773279738469,0.45533091,2052.1,2051.7,0.47874885]
[1773279738765,0.45533091,2052.2,2051.7,0.47874885]
[1773279739741,1.21826421,2052.1,2051.7,0.47874885]
[1773279739945,1.67359512,2052.1,2051.7,0.47874885]
[1773279740361,0.46182592,2052.0,2051.5,1.67624422]
[1773279743070,0.46182592,2052.0,2051.6,0.660739]
[1773279743244,0.46182592,2052.0,2051.6,1.11840766]
[1773279744876,1.21826734,2052.1,2051.7,0.45766866]
[1773279745372,0.46182592,2052.0,2051.7,0.001]
[1773279745875,0.46382592,2052.0,2051.7,0.001]